bitfinex/quotes_BTCUSD_20240821
["timestamp","ask_amount","ask_price","bid_price","bid_amount"]
[1724259579346,0.1905,59942.0,59941.0,1.02305767]
[1724259580062,0.001,59942.0,59941.0,1.02305767]
[1724259580537,0.42,59947.0,59942.0,0.166825]
[1724259580767,0.920447,59947.0,59943.0,0.166824]
[1724259581003,0.42,59947.0,59944.0,0.166822]
[1724259581993,0.42,59947.0,59945.0,0.02487528]
[1724259582232,0.42,59947.0,59944.0,0.166822]
[1724259582448,0.42,59947.0,59945.0,0.166819]
[1724259583833,0.42,59947.0,59945.0,0.167819]
[1724259584728,0.42,59947.0,59945.0,0.001]
[1724259585222,0.42,59947.0,59945.0,0.167817]
[1724259585435,0.42,59947.0,59946.0,0.02486843]
[1724259586794,0.42,59947.0,59946.0,0.02586843]
[1724259587239,0.42,59947.0,59946.0,0.19268443]
[1724259587758,0.1845,59947.0,59946.0,0.19268443]
[1724259588207,0.1845,59947.0,59946.0,0.02586843]
[1724259589613,0.4243,59947.0,59946.0,0.02586843]
[1724259590351,0.4243,59947.0,59946.0,0.19268443]
[1724259590579,0.4243,59947.0,59946.0,0.02586843]
[1724259591968,0.425122,59947.0,59946.0,0.02586843]
[1724259592198,0.185322,59947.0,59946.0,0.19268443]
[1724259593154,0.185322,59947.0,59946.0,0.02586843]
[1724259593636,0.185322,59947.0,59946.0,0.19268443]
[1724259594102,0.185322,59947.0,59946.0,0.02586843]
[1724259594337,0.185322,59947.0,59946.0,0.19268443]
[1724259594586,0.02619912,59952.0,59951.0,0.501407]
[1724259594801,0.00823,59974.0,59951.0,0.501407]
[1724259594802,0.49229154,59972.0,59954.0,0.973483]
[1724259595024,0.49229154,59972.0,59960.0,0.201777]
[1724259595277,0.49229154,59972.0,59960.0,2.56468228]
[1724259595530,0.00823,59974.0,59960.0,2.89823728]
[1724259596437,0.00823,59974.0,59960.0,3.09447526]
[1724259596668,0.00823,59974.0,59960.0,3.0595498]
[1724259597335,0.00823,59974.0,59960.0,2.91223728]
[1724259598202,0.00823,59974.0,59960.0,2.94429541]
[1724259598634,0.00823,59974.0,59960.0,3.27785041]
[1724259598851,0.00823,59974.0,59960.0,2.96579805]
[1724259599340,0.00823,59974.0,59960.0,3.08832894]
[1724259600278,0.2338,59971.0,59960.0,3.05416094]
[1724259600505,0.00823,59974.0,59960.0,2.94758735]
[1724259600728,0.00823,59974.0,59960.0,2.96563621]
[1724259601203,0.00823,59974.0,59960.0,3.08815167]
[1724259601663,0.00823,59974.0,59960.0,2.96563621]
[1724259601895,0.00823,59974.0,59960.0,3.42157909]
[1724259602549,0.00823,59974.0,59960.0,3.29919121]
[1724259603305,0.00823,59974.0,59965.0,1.503871]
[1724259603510,0.00823,59974.0,59965.0,2.00377398]
[1724259603727,0.00823,59974.0,59965.0,2.02182284]
[1724259604651,0.00823,59974.0,59965.0,2.21812284]
[1724259604902,0.00823,59974.0,59973.0,1.502673]
[1724259605128,0.00823,59974.0,59973.0,1.91117598]
[1724259605348,0.25953,59974.0,59973.0,0.99770998]
[1724259605575,0.44913,59974.0,59973.0,0.99770998]
[1724259605871,0.00823,59974.0,59973.0,1.33119298]
[1724259606603,0.00823,59974.0,59973.0,1.33219298]
[1724259606866,0.00823,59974.0,59973.0,1.58249298]
[1724259607391,0.00823,59974.0,59973.0,1.59549298]
[1724259607591,0.00823,59974.0,59973.0,1.34519298]
[1724259607848,0.24653,59974.0,59973.0,0.859707]
[1724259608101,0.24653,59974.0,59973.0,0.026]
[1724259608102,0.43723,59974.0,59973.0,0.026]
[1724259608372,0.43723,59974.0,59973.0,0.192741]
[1724259608584,0.43723,59974.0,59973.0,0.859707]
[1724259608826,0.43723,59974.0,59973.0,1.35719298]
[1724259608827,0.00823,59974.0,59973.0,1.35719298]
[1724259609528,0.13582058,59979.0,59976.0,0.166731]
[1724259609757,0.13582058,59979.0,59977.0,0.166729]
[1724259609989,0.13582058,59979.0,59974.0,0.333477]
[1724259610237,0.2503,59978.0,59976.0,0.166732]
[1724259610464,0.2503,59978.0,59973.0,0.014]
[1724259610695,0.2503,59978.0,59977.0,0.500191]
[1724259611829,0.2503,59978.0,59977.0,0.16673]
[1724259612082,0.2503,59978.0,59967.0,0.333515]
[1724259612333,0.2503,59978.0,59977.0,0.008]
[1724259612334,0.833637,59978.0,59977.0,0.008]
[1724259612555,0.833637,59978.0,59964.0,0.333532]
[1724259612556,0.1812,59971.0,59964.0,0.333532]
[1724259612772,0.1812,59971.0,59966.0,0.166759]
[1724259612773,0.2584,59970.0,59966.0,0.166759]
[1724259613003,0.1812,59971.0,59963.0,0.80497098]
[1724259613004,0.166759,59967.0,59963.0,0.80497098]
[1724259613225,0.166759,59967.0,59960.0,0.02150264]
[1724259613226,0.1812,59966.0,59960.0,0.02150264]
[1724259613476,0.2344,59961.0,59960.0,0.02150264]
[1724259613695,0.2344,59961.0,59960.0,0.18827964]
[1724259613911,0.2344,59961.0,59960.0,0.52183464]
[1724259614371,0.1812,59966.0,59964.0,0.166764]
[1724259614372,0.2344,59965.0,59964.0,0.166764]
[1724259615521,0.2344,59965.0,59964.0,0.166766]
[1724259616268,0.833875,59961.0,59960.0,0.03050264]
[1724259616494,1.622725,59961.0,59960.0,0.02150264]
[1724259616724,1.289175,59961.0,59960.0,0.02150264]
[1724259617411,1.622725,59961.0,59960.0,0.02150264]
[1724259617672,1.622725,59961.0,59960.0,0.02240684]
[1724259617904,1.622725,59961.0,59960.0,0.0009042]
[1724259618161,1.289175,59961.0,59960.0,0.0009042]
[1724259618447,0.956447,59961.0,59960.0,0.0009042]
[1724259618713,0.622897,59961.0,59960.0,0.0009042]
[1724259618966,1.289997,59961.0,59960.0,0.0019042]
[1724259619961,1.623547,59961.0,59960.0,0.0019042]
[1724259624845,1.289997,59961.0,59960.0,0.0019042]
[1724259625305,1.623547,59961.0,59960.0,0.0019042]
[1724259626249,1.646547,59961.0,59960.0,0.0019042]
[1724259626497,2.17025629,59961.0,59960.0,0.0019042]
[1724259627879,2.17525629,59961.0,59960.0,0.0029042]
[1724259628346,2.17525629,59961.0,59960.0,0.0019042]
[1724259628565,2.27625629,59961.0,59960.0,0.0029042]
[1724259628855,1.94170629,59961.0,59960.0,0.0019042]
[1724259629124,1.75470331,59961.0,59960.0,0.0029042]
[1724259629354,1.65570331,59961.0,59960.0,0.0029042]
[1724259629567,1.65070331,59961.0,59960.0,0.0019042]
[1724259630025,1.65470331,59961.0,59960.0,0.0019042]
[1724259630244,1.65570331,59961.0,59960.0,0.0029042]
[1724259630498,1.65070331,59961.0,59960.0,0.0019042]
[1724259630710,1.65570331,59961.0,59960.0,0.0029042]
[1724259631691,1.32215331,59961.0,59960.0,0.0029042]
[1724259632386,1.65570331,59961.0,59960.0,0.0029042]
[1724259632614,1.81970629,59961.0,59960.0,0.0029042]
[1724259632850,2.27725629,59961.0,59960.0,0.0029042]
[1724259633074,2.27625629,59961.0,59960.0,0.0029042]
[1724259633300,2.61080629,59961.0,59960.0,0.0029042]
[1724259634018,2.61280629,59961.0,59960.0,0.0029042]
[1724259634489,2.71268083,59961.0,59960.0,0.0019042]
[1724259634711,2.70668083,59961.0,59960.0,0.0009042]
[1724259634939,1.609054,59944.0,59943.0,0.00040164]
[1724259635909,2.15586216,59944.0,59943.0,0.00040164]
[1724259636156,2.25686216,59944.0,59943.0,0.00040164]
[1724259636629,2.25586216,59944.0,59943.0,0.00640164]
[1724259636867,2.2637291,59944.0,59943.0,0.01140164]
[1724259637321,2.2637291,59944.0,59943.0,0.00640164]
[1724259637553,2.2647291,59944.0,59943.0,0.00640164]
[1724259637832,2.2787291,59944.0,59943.0,0.00140164]
[1724259638053,2.2867291,59944.0,59943.0,0.00140164]
[1724259638288,2.2807291,59944.0,59943.0,0.00140164]
[1724259638526,2.2777291,59944.0,59943.0,0.00140164]
[1724259638758,2.2927291,59944.0,59943.0,0.00140164]
[1724259638979,2.6143731,59944.0,59943.0,0.00040164]
[1724259639210,2.6143731,59944.0,59943.0,0.00140164]
[1724259639211,2.6253731,59944.0,59943.0,0.00140164]
[1724259639661,2.6143731,59944.0,59943.0,0.00040164]
[1724259639878,2.77835188,59944.0,59943.0,0.00040164]
[1724259640122,2.78935188,59944.0,59943.0,0.00140164]
[1724259640593,2.77835188,59944.0,59943.0,0.00040164]
[1724259640815,2.76435188,59944.0,59943.0,0.00040164]
[1724259641280,2.78635188,59944.0,59943.0,0.00140164]
[1724259641516,2.6083731,59944.0,59943.0,0.00140164]
[1724259642014,2.6143731,59944.0,59943.0,0.00040164]
[1724259642242,2.6003731,59944.0,59943.0,0.00040164]
[1724259642457,2.6113731,59944.0,59943.0,0.00140164]
[1724259642925,2.6253731,59944.0,59943.0,0.00140164]
[1724259643145,2.6143731,59944.0,59943.0,0.00040164]
[1724259643368,2.6143731,59944.0,59943.0,0.00130584]
[1724259643586,2.78935188,59944.0,59943.0,0.00230584]
[1724259644997,2.6223731,59944.0,59943.0,0.00230584]
[1724259645228,2.6253731,59944.0,59943.0,0.00230584]
[1724259645446,2.6253731,59944.0,59943.0,0.0019042]
[1724259646329,2.9610171,59944.0,59943.0,0.0019042]
[1724259651010,2.9560171,59944.0,59943.0,0.0019042]
[1724259651433,2.9570171,59944.0,59943.0,0.0019042]
[1724259651644,3.12299588,59944.0,59943.0,0.0019042]
[1724259651872,3.12259451,59944.0,59943.0,0.0019042]
[1724259652154,2.95861573,59944.0,59943.0,0.0019042]
[1724259656115,2.95561573,59944.0,59943.0,0.0019042]
[1724259656341,2.95661573,59944.0,59943.0,0.0019042]
[1724259656788,2.95626573,59944.0,59943.0,0.0019042]
[1724259657042,2.62162173,59944.0,59943.0,0.0019042]
[1724259657716,2.62262173,59944.0,59943.0,0.0019042]
[1724259657936,2.62462173,59944.0,59943.0,0.0019042]
[1724259659220,2.28797773,59944.0,59943.0,0.0019042]
[1724259659701,1.84667773,59944.0,59943.0,0.0019042]
[1724259660926,1.22603075,59944.0,59943.0,0.0019042]
[1724259661442,1.22603075,59944.0,59943.0,0.1925042]
[1724259661691,1.22603075,59944.0,59943.0,0.4462042]
[1724259661693,1.20103075,59944.0,59943.0,0.4462042]
[1724259661929,1.20103075,59944.0,59943.0,0.4472042]
[1724259661930,0.87838675,59944.0,59943.0,0.4472042]
[1724259662185,0.99138675,59944.0,59943.0,0.47036631]
[1724259662459,0.88038675,59944.0,59943.0,0.46936631]
[1724259662717,0.51271463,59944.0,59943.0,0.46936631]
[1724259663209,0.51271463,59944.0,59943.0,0.46836631]
[1724259663210,0.83335863,59944.0,59943.0,0.46836631]
[1724259663727,0.84335863,59944.0,59943.0,0.46936631]
[1724259663985,0.85435863,59944.0,59943.0,0.46936631]
[1724259665959,0.85435863,59944.0,59943.0,0.4472042]
[1724259666418,0.85435863,59944.0,59943.0,0.46936631]
[1724259666658,0.52071463,59944.0,59943.0,0.46936631]
[1724259667145,0.52071463,59944.0,59943.0,0.4472042]
[1724259667380,0.50971463,59944.0,59943.0,0.4462042]
[1724259667870,0.17207063,59944.0,59943.0,0.4472042]
[1724259668101,0.17607063,59944.0,59943.0,0.4472042]
[1724259668352,0.50971463,59944.0,59943.0,0.4472042]
[1724259668601,0.51053663,59944.0,59943.0,0.4472042]
[1724259669112,0.010822,59944.0,59943.0,0.94485718]
[1724259669365,0.010822,59944.0,59943.0,1.44533218]
[1724259669604,0.166792,59955.0,59943.0,1.44533218]
[1724259669605,0.49229154,59955.0,59944.0,0.2583]
[1724259669862,0.166819,59945.0,59944.0,0.2583]
[1724259670334,0.500458,59945.0,59944.0,0.2583]
[1724259670568,0.834097,59945.0,59944.0,0.2583]
[1724259671279,0.835097,59945.0,59944.0,0.2643]
[1724259671735,0.834097,59945.0,59944.0,0.2583]
[1724259671988,0.834097,59945.0,59944.0,0.2593]
[1724259672722,0.834097,59945.0,59944.0,0.2623]
[1724259677038,1.19389567,59945.0,59944.0,0.2623]
[1724259677251,0.86025667,59945.0,59944.0,0.2623]
[1724259677926,1.19389567,59945.0,59944.0,0.2623]
[1724259678917,1.49688524,59945.0,59944.0,0.004]
[1724259679166,1.61189567,59945.0,59944.0,0.004]
[1724259679410,1.94553467,59945.0,59944.0,0.004]
[1724259679856,1.94553467,59945.0,59944.0,0.003]
[1724259680128,1.167754,59944.0,59943.0,0.0009042]
[1724259681350,1.167754,59944.0,59943.0,0.2370042]
[1724259682551,0.84911,59944.0,59943.0,0.2390042]
[1724259683783,0.84911,59944.0,59943.0,0.4228042]
[1724259684396,0.515466,59944.0,59943.0,0.4228042]
[1724259684728,0.015,59944.0,59943.0,0.75363218]
[1724259685204,0.015,59944.0,59943.0,1.42093218]
[1724259685469,0.007,59944.0,59943.0,1.41993218]
[1724259685702,0.000823,59945.0,59944.0,0.921466]
[1724259685926,0.000823,59945.0,59944.0,1.75275698]
[1724259686406,1e-08,59945.0,59944.0,1.75575698]
[1724259687103,1e-08,59945.0,59944.0,1.75375698]
[1724259687320,1e-08,59945.0,59944.0,1.41911298]
[1724259687574,1e-08,59945.0,59944.0,1.09546898]
[1724259687575,0.00100001,59945.0,59944.0,1.09546898]
[1724259688262,0.00200001,59945.0,59944.0,1.10246898]
[1724259688484,0.00100001,59945.0,59944.0,1.09546898]
[1724259688957,0.00200001,59945.0,59944.0,1.10346898]
[1724259689189,0.00200001,59945.0,59944.0,1.12151255]
[1724259689685,0.00200001,59945.0,59944.0,1.10346898]
[1724259690631,0.00200001,59945.0,59944.0,0.76982498]
[1724259691085,0.00200001,59945.0,59944.0,1.10346898]
[1724259691761,0.83609701,59945.0,59944.0,0.018]
[1724259691985,1.16973601,59945.0,59944.0,0.018]
[1724259692940,1.167754,59944.0,59943.0,0.0009042]
[1724259694419,1.734998,59944.0,59943.0,0.0009042]
[1724259695563,1.742998,59944.0,59943.0,0.0019042]
[1724259696070,1.742998,59944.0,59943.0,0.0029042]
[1724259696290,1.750998,59944.0,59943.0,0.0029042]
[1724259696517,2.38250432,59944.0,59943.0,0.0029042]
[1724259696767,2.74692363,59944.0,59943.0,0.0029042]
[1724259697007,2.74892363,59944.0,59943.0,0.0029042]
[1724259697860,2.73292363,59944.0,59943.0,0.0009042]
[1724259698313,2.58663313,59944.0,59943.0,0.0019042]
[1724259698573,2.58763313,59944.0,59943.0,0.0019042]
[1724259698823,2.58763313,59944.0,59943.0,0.0029042]
[1724259698824,2.60163313,59944.0,59943.0,0.0029042]
[1724259699311,2.60363313,59944.0,59943.0,0.0029042]
[1724259700006,2.60163313,59944.0,59943.0,0.0029042]
[1724259700269,2.59385782,59944.0,59943.0,0.0029042]
[1724259700516,2.59585782,59944.0,59943.0,0.0029042]
[1724259702936,2.6242866,59944.0,59943.0,0.0029042]
[1724259703623,2.59585782,59944.0,59943.0,0.0029042]
[1724259704536,2.92950182,59944.0,59943.0,0.0029042]
[1724259705962,2.92650182,59944.0,59943.0,0.0029042]
[1724259706666,2.92750182,59944.0,59943.0,0.0029042]
[1724259706897,2.92950182,59944.0,59943.0,0.0029042]
[1724259707125,2.92750182,59944.0,59943.0,0.0029042]
[1724259707582,3.0914806,59944.0,59943.0,0.0029042]
[1724259707818,3.0934806,59944.0,59943.0,0.0029042]
[1724259708280,2.92950182,59944.0,59943.0,0.0029042]
[1724259709242,2.92650182,59944.0,59943.0,0.0029042]
[1724259710365,2.40585484,59944.0,59943.0,0.0029042]
[1724259710596,1.294754,59944.0,59943.0,0.0029042]
[1724259710834,1.194754,59944.0,59943.0,0.2443042]
[1724259711593,0.86111,59944.0,59943.0,0.2443042]
[1724259712050,0.84811,59944.0,59943.0,0.2433042]
[1724259712734,0.83411,59944.0,59943.0,0.2423042]
[1724259714119,0.84711,59944.0,59943.0,0.2433042]
[1724259714603,0.513466,59944.0,59943.0,0.2433042]
[1724259714887,0.013,59944.0,59943.0,0.4422042]
[1724259715322,0.179822,59944.0,59943.0,0.4422042]
[1724259715554,0.172822,59944.0,59943.0,0.4412042]
[1724259715791,0.173822,59944.0,59943.0,0.4422042]
[1724259716263,0.007,59944.0,59943.0,0.4422042]
[1724259716683,0.007,59944.0,59943.0,1.10668218]
[1724259717131,0.007,59944.0,59943.0,1.44033218]
[1724259717371,0.001,59944.0,59943.0,1.44233218]
[1724259717596,1e-08,59945.0,59944.0,0.83411]
[1724259717815,1e-08,59945.0,59944.0,1.43061298]
[1724259719171,0.00200001,59945.0,59944.0,1.44361298]
[1724259722420,0.00200001,59945.0,59944.0,1.77725698]
[1724259723163,1e-08,59945.0,59944.0,1.78025698]
[1724259723397,1e-08,59945.0,59944.0,2.11390098]
[1724259723900,1e-08,59945.0,59944.0,2.58275556]
[1724259724340,0.000822,59960.0,59959.0,0.4508]
[1724259724560,0.000822,59960.0,59959.0,0.61480298]
[1724259724784,0.000822,59960.0,59959.0,0.63788857]
[1724259725048,0.000822,59960.0,59959.0,0.80466857]
[1724259725296,0.000822,59960.0,59959.0,0.80146857]
[1724259725766,0.007822,59960.0,59959.0,0.80246857]
[1724259725990,0.007822,59960.0,59959.0,0.63568857]
[1724259726685,0.007822,59960.0,59959.0,1.46959057]
[1724259726932,0.007822,59960.0,59959.0,1.13702957]
[1724259726933,0.010822,59960.0,59959.0,1.13702957]
[1724259727159,0.007822,59960.0,59959.0,0.44588857]
[1724259727401,0.167599,59960.0,59959.0,0.18708857]
[1724259727646,0.169599,59960.0,59959.0,0.18708857]
[1724259727884,0.171599,59960.0,59959.0,0.18708857]
[1724259728114,0.505154,59960.0,59959.0,0.18708857]
[1724259728572,1.407364,59960.0,59959.0,0.02308559]
[1724259728828,0.500424,59949.0,59948.0,0.2498]
[1724259729061,0.500424,59949.0,59948.0,0.41380298]
[1724259729538,0.500466,59944.0,59943.0,0.0009042]
[1724259729766,1.07991,59944.0,59943.0,0.0009042]
[1724259730032,1.413554,59944.0,59943.0,0.0009042]
[1724259730953,1.413554,59944.0,59943.0,0.0019042]
[1724259730954,1.44971646,59944.0,59943.0,0.0019042]
[1724259731214,1.44971646,59944.0,59943.0,0.0009042]
[1724259731477,1.46071646,59944.0,59943.0,0.0029042]
[1724259731705,1.46071646,59944.0,59943.0,0.0019042]
[1724259731706,1.44471646,59944.0,59943.0,0.0019042]
[1724259732198,1.45071646,59944.0,59943.0,0.0019042]
[1724259732431,1.45571646,59944.0,59943.0,0.0029042]
[1724259733356,1.44471646,59944.0,59943.0,0.0019042]
[1724259733584,1.43971646,59944.0,59943.0,0.0009042]
[1724259733809,1.44971646,59944.0,59943.0,0.0019042]
[1724259734043,1.45571646,59944.0,59943.0,0.0029042]
[1724259736027,1.20991646,59944.0,59943.0,0.0029042]
[1724259736264,1.18058763,59944.0,59943.0,0.0029042]
[1724259736498,0.51329963,59944.0,59943.0,0.0029042]
[1724259736770,0.48713717,59944.0,59943.0,0.0029042]
[1724259737004,0.48713717,59944.0,59943.0,0.42140718]
[1724259737005,0.016,59944.0,59943.0,0.42140718]
[1724259737240,0.016,59944.0,59943.0,0.45720557]
[1724259737472,0.016,59944.0,59943.0,0.45620557]
[1724259737473,0.510466,59944.0,59943.0,0.45620557]
[1724259737701,0.500466,59944.0,59943.0,0.45520557]
[1724259737932,0.169822,59944.0,59943.0,0.45520557]
[1724259738165,0.169822,59944.0,59943.0,0.45620557]
[1724259738166,0.175822,59944.0,59943.0,0.45620557]
[1724259738395,0.509466,59944.0,59943.0,0.45620557]
[1724259738632,0.505466,59944.0,59943.0,0.45520557]
[1724259740023,0.508466,59944.0,59943.0,0.45520557]
[1724259740475,0.84211,59944.0,59943.0,0.45520557]
[1724259741210,0.84211,59944.0,59943.0,0.20070557]
[1724259741445,0.84211,59944.0,59943.0,0.03670259]
[1724259741446,1.175754,59944.0,59943.0,0.03670259]
[1724259742156,1.175754,59944.0,59943.0,0.0009042]
[1724259743796,0.008,59944.0,59943.0,0.60830718]
[1724259744026,0.842933,59944.0,59943.0,0.64469033]
[1724259744260,0.842933,59944.0,59943.0,0.20129033]
[1724259744261,0.509289,59944.0,59943.0,0.20129033]
[1724259744500,0.175645,59944.0,59943.0,0.03728735]
[1724259744744,0.008823,59944.0,59943.0,0.20129033]
[1724259744959,0.008823,59944.0,59943.0,0.64729033]
[1724259745875,0.008823,59944.0,59943.0,1.14776533]
[1724259746759,1e-08,59944.0,59943.0,1.14776533]
[1724259747041,1e-08,59944.0,59943.0,0.81611533]
[1724259747272,1e-08,59944.0,59943.0,0.65329033]
[1724259747498,1e-08,59944.0,59943.0,0.20529033]
[1724259747731,0.16682201,59944.0,59943.0,0.20129033]
[1724259747964,1.07631001,59944.0,59943.0,0.04228735]
[1724259748192,1.41095401,59944.0,59943.0,0.04928735]
[1724259748415,1.41095401,59944.0,59943.0,0.0129042]
[1724259748643,1.61761331,59944.0,59943.0,0.0129042]
[1724259749325,1.61761331,59944.0,59943.0,0.0079042]
[1724259749791,1.61761331,59944.0,59943.0,0.0009042]
[1724259749981,1.61661331,59944.0,59943.0,0.0009042]
[1724259750231,1.61661331,59944.0,59943.0,0.0029042]
[1724259750448,1.61661331,59944.0,59943.0,0.0009042]
[1724259750684,2.40223907,59944.0,59943.0,0.0009042]
[1724259750879,2.74188307,59944.0,59943.0,0.0009042]
[1724259751354,2.24515,59934.0,59933.0,0.0009042]
[1724259751544,2.26915,59934.0,59933.0,0.0009042]
[1724259752244,2.55931969,59934.0,59933.0,0.0009042]
[1724259752470,2.58543468,59934.0,59933.0,0.0009042]
[1724259752901,2.58743468,59934.0,59933.0,0.0009042]
[1724259753385,2.59230884,59934.0,59933.0,0.0009042]
[1724259753624,2.59230884,59934.0,59933.0,0.0019042]
[1724259753625,2.59530884,59934.0,59933.0,0.0019042]
[1724259753846,2.59930884,59934.0,59933.0,0.0019042]
[1724259754075,2.60530884,59934.0,59933.0,0.0019042]
[1724259754288,2.61430884,59934.0,59933.0,0.0029042]
[1724259754744,2.61130884,59934.0,59933.0,0.0029042]
[1724259755174,2.32310884,59934.0,59933.0,0.0029042]
[1724259755386,2.61130884,59934.0,59933.0,0.0029042]
[1724259756045,2.59930884,59934.0,59933.0,0.0019042]
[1724259756477,2.60030884,59934.0,59933.0,0.0019042]
[1724259756690,2.61030884,59934.0,59933.0,0.0029042]
[1724259757381,2.61130884,59934.0,59933.0,0.0029042]
[1724259757597,2.61030884,59934.0,59933.0,0.0029042]
[1724259757813,2.42019087,59934.0,59933.0,0.0029042]
[1724259758185,2.39719087,59934.0,59933.0,0.0029042]
[1724259759668,2.42019087,59934.0,59933.0,0.0029042]
[1724259760634,2.06349087,59934.0,59933.0,0.0029042]
[1724259761039,1.60819087,59934.0,59933.0,0.0029042]
[1724259766147,2.18659087,59934.0,59933.0,0.0029042]
[1724259766388,2.39609087,59934.0,59933.0,0.0029042]
[1724259766833,2.56309385,59934.0,59933.0,0.0029042]
[1724259767955,2.56009385,59934.0,59933.0,0.0029042]
[1724259768429,3.06077263,59934.0,59933.0,0.0029042]
[1724259768904,3.06277263,59934.0,59933.0,0.0029042]
[1724259769366,2.258177,59933.0,59932.0,0.0009042]
[1724259769591,2.54517998,59933.0,59932.0,0.0009042]
[1724259769818,2.71115876,59933.0,59932.0,0.0009042]
[1724259770527,2.71915876,59933.0,59932.0,0.0019042]
[1724259771003,2.72915876,59933.0,59932.0,0.0029042]
[1724259771238,2.71015876,59933.0,59932.0,0.0009042]
[1724259771484,2.71115876,59933.0,59932.0,0.0019042]
[1724259771725,3.08098463,59933.0,59932.0,0.0019042]
[1724259772405,3.07098463,59933.0,59932.0,0.0009042]
[1724259772660,3.08498463,59933.0,59932.0,0.0019042]
[1724259772891,3.08498463,59933.0,59932.0,0.0009042]
[1724259773131,2.80600585,59933.0,59932.0,0.0009042]
[1724259773358,2.89288498,59933.0,59932.0,0.0009042]
[1724259773844,2.90688498,59933.0,59932.0,0.0009042]
[1724259774064,2.89288498,59933.0,59932.0,0.0009042]
[1724259774504,2.90788498,59933.0,59932.0,0.0009042]
[1724259774723,3.07286376,59933.0,59932.0,0.0009042]
[1724259775844,3.07246218,59933.0,59932.0,0.0009042]
[1724259776537,2.99858236,59933.0,59932.0,0.0009042]
[1724259776761,3.09858236,59933.0,59932.0,0.0009042]
[1724259777939,2.215775,59925.0,59914.0,0.0009053]
[1724259778188,2.50377798,59925.0,59914.0,0.0009053]
[1724259778404,2.50177798,59925.0,59914.0,0.0009053]
[1724259778621,2.50177798,59925.0,59918.0,0.1943]
[1724259778873,2.52795186,59925.0,59918.0,0.1943]
[1724259779110,2.54195186,59925.0,59924.0,0.0019053]
[1724259779562,2.13912185,59925.0,59924.0,0.0019053]
[1724259780275,2.37142185,59925.0,59924.0,0.0019053]
[1724259780495,2.56392185,59925.0,59924.0,0.0019053]
[1724259781369,2.72890063,59925.0,59924.0,0.0019053]
[1724259781617,2.75502142,59925.0,59924.0,0.0019053]
[1724259782051,2.75402142,59925.0,59924.0,0.0019053]
[1724259782985,2.59004264,59925.0,59924.0,0.0019053]
[1724259783199,2.13912185,59925.0,59924.0,0.0019053]
[1724259783424,1.97511887,59925.0,59924.0,0.0019053]
[1724259784314,1.97511887,59925.0,59924.0,0.0019053]
[1724259784540,2.55504234,59925.0,59924.0,0.0019053]
[1724259785419,2.55604234,59925.0,59924.0,0.0019053]
[1724259785629,3.05277112,59925.0,59924.0,0.0019053]
[1724259786043,3.05377112,59925.0,59924.0,0.0019053]
[1724259786254,3.05577112,59925.0,59924.0,0.0019053]
[1724259787502,3.38952112,59925.0,59924.0,0.0019053]
[1724259787727,1.890227,59915.0,59914.0,0.0009053]
[1724259787943,1.890227,59915.0,59913.0,0.0009042]
[1724259787944,0.503716,59914.0,59913.0,0.0009042]
[1724259788156,0.503716,59914.0,59892.0,0.69379154]
[1724259788157,0.500784,59906.0,59892.0,0.69379154]
[1724259788369,2.10810325,59906.0,59892.0,0.69379154]
[1724259788575,2.10810325,59906.0,59877.0,0.167008]
[1724259788576,0.166989,59884.0,59873.0,0.009053]
[1724259788827,1.77017103,59884.0,59873.0,0.009053]
[1724259789075,2.20315003,59884.0,59873.0,0.009053]
[1724259789315,2.20315003,59884.0,59879.0,0.2064]
[1724259789316,1.191926,59884.0,59879.0,0.2064]
[1724259789541,1.191926,59884.0,59883.0,0.04071685]
[1724259789768,1.191926,59884.0,59883.0,0.009053]
[1724259789769,1.38311615,59884.0,59883.0,0.009053]
[1724259789991,2.08359457,59884.0,59883.0,0.009053]
[1724259790231,2.23359907,59884.0,59883.0,0.009053]
[1724259790485,2.20745806,59884.0,59883.0,0.009053]
[1724259790709,2.54143706,59884.0,59883.0,0.009053]
[1724259790925,1.50313,59875.0,59873.0,0.009053]
[1724259792205,2.11952741,59875.0,59874.0,0.03]
[1724259792406,2.11852741,59875.0,59874.0,0.03]
[1724259792868,2.13252741,59875.0,59874.0,0.03]
[1724259793075,1.64209527,59875.0,59874.0,0.03]
[1724259793294,1.63449543,59875.0,59874.0,0.03]
[1724259793502,1.62049543,59875.0,59874.0,0.03]
[1724259794384,1.61149543,59875.0,59874.0,0.03]
[1724259794601,1.51149543,59875.0,59874.0,0.03]
[1724259794815,2.19650619,59875.0,59874.0,0.03]
[1724259795029,2.19750619,59875.0,59874.0,0.03]
[1724259795244,2.18250619,59875.0,59874.0,0.03]
[1724259795470,2.19650619,59875.0,59874.0,0.03]
[1724259795915,2.19750619,59875.0,59874.0,0.03]
[1724259796995,2.39950619,59875.0,59874.0,0.03]
[1724259797204,2.48550619,59875.0,59874.0,0.03]
[1724259797437,2.48450619,59875.0,59874.0,0.03]
[1724259797848,2.49750619,59875.0,59874.0,0.03]
[1724259798105,2.32052741,59875.0,59874.0,0.03]
[1724259798343,2.30652741,59875.0,59874.0,0.03]
[1724259798555,2.32152741,59875.0,59874.0,0.03]
[1724259798770,2.33452741,59875.0,59874.0,0.03]
[1724259798978,2.33435741,59875.0,59874.0,0.03]
[1724259801151,2.33535741,59875.0,59874.0,0.03]
[1724259801622,2.04715741,59875.0,59874.0,0.03]
[1724259802137,2.04615741,59875.0,59874.0,0.03]
[1724259802357,1.84415741,59875.0,59874.0,0.03]
[1724259802573,1.65715443,59875.0,59874.0,0.03]
[1724259802798,1.55715443,59875.0,59874.0,0.03]
[1724259803020,1.92103425,59875.0,59874.0,0.03]
[1724259803253,2.08503723,59875.0,59874.0,0.03]
[1724259803889,2.10803723,59875.0,59874.0,0.03]
[1724259804137,2.18003723,59875.0,59874.0,0.03]
[1724259804376,2.19303723,59875.0,59874.0,0.0309064]
[1724259804643,2.20786123,59875.0,59874.0,0.0309064]
[1724259804847,2.20886123,59875.0,59874.0,0.0309064]
[1724259805480,2.22186123,59875.0,59874.0,0.0309064]
[1724259805913,2.55789023,59875.0,59874.0,0.0309064]
[1724259806118,2.39941041,59875.0,59874.0,0.0309064]
[1724259806553,2.40200883,59875.0,59874.0,0.0309064]
[1724259806775,2.39941041,59875.0,59874.0,0.0309064]
[1724259807047,2.06538141,59875.0,59874.0,0.0309064]
[1724259807849,2.06638141,59875.0,59874.0,0.0309064]
[1724259808066,2.23036019,59875.0,59874.0,0.0309064]
[1724259808550,2.22936019,59875.0,59874.0,0.0309064]
[1724259809739,2.73628919,59875.0,59874.0,0.0309064]